fUST/lending_fUST_20240423
["ID","MTS","AMOUNT","RATE_DAILY","PERIOD"]
[323294153,1713879032810,-1615.64181235,0.00019485,2]
[323294154,1713879032820,-823.0,0.00019663,2]
[323294155,1713879032831,-168.69287923,0.000199,2]
[323294156,1713879032841,-959.51717929,0.00019947,2]
[323294157,1713879032851,-823.0,0.00019964,2]
[323294158,1713879032860,-1368.73,0.0001999,3]
[323294159,1713879032870,-684.36,0.0001999,3]
[323294160,1713879032881,-342.18,0.0001999,3]
[323294161,1713879032893,-171.09,0.0001999,3]
[323294162,1713879032903,-657.95177247,0.00019998,2]
[323294163,1713879032914,-309.65937468,0.00019998,2]
[323294164,1713879032933,-319.474471,0.00019999,2]
[323294187,1713879038126,-2052.06351226,0.000189,2]
[323294189,1713879038136,-3132.20228363,0.00019999,2]
[323294191,1713879038145,-416.9102247,0.00019999,2]
[323294193,1713879038154,-640.64982766,0.00019999,2]
[323294195,1713879038163,-442.71151834,0.00019999,2]
[323294197,1713879038172,-172.61406582,0.00019999,2]
[323294199,1713879038181,-154.82968734,0.0002,2]
[323294201,1713879038191,-319.72058798,0.0002,2]
[323294203,1713879038200,-1058.54,0.0002,2]
[323294205,1713879038209,-5459.67159958,0.0002,2]
[323294207,1713879038218,-3322.88897122,0.0002,2]
[323294209,1713879038227,-154.82968734,0.0002,2]
[323294211,1713879038236,-277.98874346,0.0002,2]
[323294213,1713879038245,-524.5590718,0.0002,4]
[323294215,1713879038254,-154.82968734,0.0002,2]
[323294217,1713879038263,-681.0118189,0.0002,2]
[323294218,1713879038271,-678.04287141,0.0002,2]
[323294220,1713879038281,-80000.0,0.0002,2]
[323294223,1713879038291,-238.88786072,0.0002,2]
[323294224,1713879038300,-400.0,0.0002,2]
[323294227,1713879038311,-154.82968734,0.0002,2]
[323294228,1713879038320,-463.56837054,0.0002,2]
[323294231,1713879038330,-2000.0,0.0002,2]
[323294233,1713879038339,-2000.0,0.0002,2]
[323294235,1713879038349,-2000.0,0.0002,2]
[323294236,1713879038358,-1420.0,0.0002,2]
[323294239,1713879038368,-154.07879782,0.0002,2]
[323294241,1713879038377,-200.0,0.0002,2]
[323294243,1713879038386,-7901.0,0.0002,2]
[323294245,1713879038395,-153.0,0.00020274,2]
[323294247,1713879038404,-153.0,0.00020274,2]
[323294249,1713879038413,-447.22834,0.00020548,2]
[323294251,1713879038422,-463.94443372,0.000208,2]
[323294253,1713879038431,-2000.0,0.000208,2]
[323294255,1713879038440,-562.0,0.000208,2]
[323294257,1713879038449,-7589.05936054,0.000209,2]
[323294259,1713879038459,-348.98245905,0.00020999,2]
[323294261,1713879038468,-452.15187881,0.00021,2]
[323294263,1713879038476,-7925.57647667,0.00021,2]
[323294265,1713879038485,-1685.0,0.00021,2]
[323294267,1713879038495,-153.0,0.00021096,2]
[323294269,1713879038504,-153.0,0.00021096,2]
[323294271,1713879038514,-203.583665,0.00021096,2]
[323294273,1713879038523,-203.583665,0.00021096,2]
[323294275,1713879038531,-203.583665,0.00021096,2]
[323294277,1713879038540,-203.583665,0.00021096,2]
[323294278,1713879038550,-5000.0,0.000213,2]
[323294280,1713879038562,-2737.46,0.0002136,3]
[323294283,1713879038572,-1368.72,0.0002136,3]
[323294284,1713879038580,-684.36,0.0002136,3]
[323294286,1713879038590,-342.18,0.0002136,3]
[323294288,1713879038599,-153.0,0.0002137,2]
[323294291,1713879038610,-153.0,0.0002137,2]
[323294293,1713879038619,-153.0,0.0002137,2]
[323294294,1713879038628,-153.0,0.0002137,2]
[323294297,1713879038637,-306.0,0.0002137,2]
[323294299,1713879038647,-352.0960175,0.0002137,2]
[323294301,1713879038656,-153.0,0.0002137,2]
[323294303,1713879038665,-153.0,0.00021392,2]
[323294305,1713879038674,-153.0,0.00021392,2]
[323294306,1713879038683,-154.1768932,0.00021392,2]
[323294309,1713879038693,-153.0,0.00021392,2]
[323294310,1713879038702,-153.0,0.00021392,2]
[323294312,1713879038711,-306.0,0.0002148,2]
[323294314,1713879038721,-153.0,0.0002148,2]
[323294316,1713879038730,-153.0,0.0002148,2]
[323294319,1713879038739,-153.0,0.0002148,2]
[323294321,1713879038750,-958.92142915,0.000215,2]
[323294322,1713879038759,-1152.0,0.0002152,2]
[323294324,1713879038768,-500.0,0.00021691,2]
[323294326,1713879038777,-461.92467003,0.00021691,2]
[323294328,1713879038787,-176.06799262,0.00021691,2]
[323294330,1713879038795,-180.29576103,0.00021691,2]
[323294332,1713879038807,-247.22010741,0.00021692,2]
[323294334,1713879038816,-170.54852013,0.00021692,2]
[323294336,1713879038826,-163.35072006,0.00021692,2]
[323294338,1713879038835,-2587.27470458,0.00021692,2]
[323294341,1713879038845,-155.07799985,0.00021692,2]
[323294342,1713879038854,-1087.28742838,0.00021692,2]
[323294345,1713879038863,-162.02240911,0.00021692,2]
[323294346,1713879038872,-191.70251594,0.00021692,2]
[323294349,1713879038882,-186.38249675,0.00021692,2]
[323294350,1713879038891,-155.3169759,0.00021692,2]
[323294352,1713879038900,-157.7311165,0.00021692,2]
[323294354,1713879038909,-308.43832005,0.00021692,2]
[323294357,1713879038919,-302.49470746,0.00021692,2]
[323294359,1713879038928,-207.98156917,0.00021692,2]
[323294361,1713879038937,-162.55370542,0.00021692,2]
[323294363,1713879038949,-207.85032377,0.00021692,2]
[323294365,1713879038959,-157.15569525,0.00021697,2]
[323294366,1713879038969,-306.0,0.00021708,2]
[323294369,1713879038978,-203.583665,0.00021708,2]
[323294371,1713879038988,-203.583665,0.00021708,2]
[323294373,1713879038999,-203.583665,0.00021708,2]
[323294375,1713879039008,-203.583665,0.00021708,2]
[323294377,1713879039017,-203.583665,0.00021708,2]
[323294379,1713879039026,-410.0760066,0.00021708,2]
[323294381,1713879039036,-2000.0,0.000218,2]
[323294383,1713879039045,-2000.0,0.000218,2]
[323294384,1713879039055,-227.42172021,0.00021814,2]
[323294386,1713879039064,-1674.53760629,0.00021815,2]
[323294389,1713879039073,-296.02935564,0.00021815,2]
[323294390,1713879039082,-156.08493432,0.00021815,2]
[323294393,1713879039092,-44444.0,0.00021817,3]
[323294395,1713879039101,-1615.64181235,0.00021817,2]
[323294397,1713879039111,-155.55822462,0.00021834,2]
[323294399,1713879039120,-154.86062544,0.00021834,2]
[323294401,1713879039130,-259.4890615,0.00021834,2]
[323294403,1713879039139,-2623.01567159,0.00021839,2]
[323294405,1713879039149,-471.58731213,0.00021915,2]
[323294406,1713879039158,-468.2653797,0.00021915,2]
[323294408,1713879039167,-154.82968734,0.00021916,2]
[323294410,1713879039177,-5400.0,0.00021916,2]
[323294412,1713879039186,-1000.0,0.00021916,2]
[323294414,1713879039195,-10117.08160631,0.00021916,2]
[323294416,1713879039204,-154.82968734,0.00021916,2]
[323294418,1713879039213,-238.34833759,0.00021916,2]
[323294420,1713879039222,-200.0,0.00021916,2]
[323294422,1713879039232,-185.16589348,0.00021916,2]
[323294424,1713879039241,-9994.30166297,0.00021916,2]
[323294426,1713879039250,-500.0,0.00021917,2]
[323294428,1713879039259,-500.0,0.00021917,2]
[323294430,1713879039268,-500.0,0.00021917,2]
[323294432,1713879039277,-310.36254952,0.00021917,2]
[323294434,1713879039287,-151.0,0.00021917,2]
[323294436,1713879039296,-259.26277485,0.00021917,2]
[323294438,1713879039307,-500.0,0.00021917,2]
[323294440,1713879039317,-500.0,0.00021917,2]
[323294442,1713879039326,-500.0,0.00021917,2]
[323294444,1713879039334,-500.0,0.00021917,2]
[323294446,1713879039344,-500.0,0.00021917,2]
[323294448,1713879039353,-500.0,0.00021917,2]
[323294450,1713879039362,-505.54132758,0.00021917,2]
[323294452,1713879039371,-500.0,0.00021917,2]
[323294454,1713879039380,-500.0,0.00021917,2]
[323294456,1713879039390,-224.4102939,0.00021917,2]
[323294458,1713879039400,-500.0,0.00021917,2]
[323294460,1713879039410,-500.0,0.00021917,2]
[323294463,1713879039420,-500.0,0.00021917,2]
[323294465,1713879039429,-500.0,0.00021917,2]
[323294467,1713879039439,-500.0,0.00021917,2]
[323294469,1713879039448,-500.0,0.00021917,2]
[323294471,1713879039457,-500.0,0.00021917,2]
[323294473,1713879039466,-500.0,0.00021917,2]
[323294475,1713879039476,-325.07983737,0.00021917,2]
[323294477,1713879039485,-500.0,0.00021917,2]
[323294479,1713879039494,-500.0,0.00021917,2]
[323294481,1713879039503,-558.97,0.00021917,2]
[323294483,1713879039513,-500.0,0.00021917,2]
[323294485,1713879039521,-486.93249255,0.00021917,2]
[323294486,1713879039530,-500.0,0.00021917,2]
[323294488,1713879039539,-500.0,0.00021917,2]
[323294490,1713879039548,-500.0,0.00021917,2]
[323294492,1713879039559,-500.0,0.00021917,2]
[323294494,1713879039569,-500.0,0.00021917,2]
[323294497,1713879039578,-500.0,0.00021917,2]
[323294499,1713879039587,-500.0,0.00021917,2]
[323294500,1713879039597,-500.0,0.00021917,2]
[323294502,1713879039606,-500.0,0.00021917,2]
[323294505,1713879039616,-500.0,0.00021917,2]
[323294508,1713879039625,-432.18584531,0.00021917,2]
[323294510,1713879039634,-500.0,0.00021917,2]
[323294512,1713879039643,-500.0,0.00021917,2]
[323294514,1713879039653,-500.0,0.00021917,2]
[323294516,1713879039662,-165.56037737,0.00021917,2]
[323294518,1713879039671,-500.0,0.00021917,2]
[323294520,1713879039680,-151.0,0.00021917,2]
[323294522,1713879039689,-500.0,0.00021917,2]
[323294523,1713879039698,-500.0,0.00021917,2]
[323294526,1713879039707,-151.0,0.00021917,2]
[323294527,1713879039717,-500.0,0.00021917,2]
[323294529,1713879039727,-540.91,0.00021917,2]
[323294532,1713879039736,-500.0,0.00021917,2]
[323294534,1713879039746,-500.0,0.00021917,2]
[323294536,1713879039755,-541.60503942,0.00021917,2]
[323294538,1713879039764,-500.0,0.00021917,2]
[323294540,1713879039773,-500.0,0.00021917,2]
[323294551,1713879039782,-500.0,0.00021917,2]
[323294553,1713879039887,-500.0,0.00021917,2]
[323294555,1713879039896,-500.0,0.00021917,2]
[323294557,1713879039905,-510.27205363,0.00021917,2]
[323294559,1713879039914,-500.0,0.00021917,2]
[323294561,1713879039923,-500.0,0.00021917,2]
[323294563,1713879039932,-500.0,0.00021917,2]
[323294565,1713879039941,-288.71947098,0.00021917,2]
[323294567,1713879039955,-500.0,0.00021917,2]
[323294569,1713879039964,-151.0,0.00021917,2]
[323294571,1713879039973,-151.0,0.00021917,2]
[323294572,1713879039982,-500.0,0.00021917,2]
[323294573,1713879039993,-151.0,0.00021917,2]
[323294574,1713879040003,-281.256493,0.00021917,2]
[323294575,1713879040012,-500.0,0.00021917,2]
[323294576,1713879040022,-165.69425574,0.00021917,2]
[323294577,1713879040031,-247.45506757,0.00021917,2]
[323294578,1713879040041,-245.21291609,0.00021917,2]
[323294579,1713879040050,-502.58328906,0.00021917,2]
[323294580,1713879040064,-500.0,0.00021917,2]
[323294581,1713879040076,-500.0,0.00021917,2]
[323294582,1713879040084,-500.99350523,0.00021917,2]
[323294583,1713879040093,-500.0,0.00021917,2]
[323294584,1713879040103,-500.0,0.00021917,2]
[323294585,1713879040111,-567.37810752,0.00021917,2]
[323294586,1713879040120,-500.0,0.00021917,2]
[323294587,1713879040130,-500.0,0.00021917,2]
[323294588,1713879040142,-500.0,0.00021917,2]
[323294589,1713879040150,-500.0,0.00021917,2]
[323294590,1713879040159,-714.44,0.00021917,2]
[323294591,1713879040168,-500.0,0.00021917,2]
[323294592,1713879040177,-507.99465319,0.00021917,2]
[323294593,1713879040186,-1284.03,0.00021917,2]
[323294594,1713879040195,-600.69,0.00021917,2]
[323294595,1713879040204,-500.0,0.00021917,2]
[323294596,1713879040213,-500.0,0.00021917,2]
[323294597,1713879040223,-500.0,0.00021917,2]
[323294598,1713879040232,-500.0,0.00021917,2]
[323294599,1713879040241,-500.0,0.00021917,2]
[323294600,1713879040251,-500.0,0.00021917,2]
[323294601,1713879040262,-500.0,0.00021917,2]
[323294602,1713879040274,-500.0,0.00021917,2]
[323294603,1713879040283,-500.0,0.00021917,2]
[323294604,1713879040293,-151.0,0.00021917,2]
[323294605,1713879040302,-151.0,0.00021917,2]
[323294606,1713879040314,-500.0,0.00021917,2]
[323294607,1713879040325,-559.01971399,0.00021917,2]
[323294608,1713879040335,-2000.0,0.00021917,2]
[323294609,1713879040348,-500.0,0.00021917,2]
[323294610,1713879040367,-500.0,0.00021917,2]
[323294611,1713879040376,-154.86062544,0.00021917,2]
[323294612,1713879040385,-500.0,0.00021917,2]
[323294613,1713879040394,-833.24,0.00021917,2]
[323294614,1713879040404,-500.0,0.00021917,2]
[323294615,1713879040412,-500.0,0.00021917,2]
[323294616,1713879040422,-151.0,0.00021917,2]
[323294617,1713879040430,-151.0,0.00021917,2]
[323294618,1713879040439,-500.853556,0.00021917,2]
[323294619,1713879040448,-500.0,0.00021917,2]
[323294620,1713879040457,-500.0,0.00021917,2]
[323294621,1713879040467,-650.7,0.00021917,2]
[323294622,1713879040476,-500.0,0.00021917,2]
[323294623,1713879040484,-1010.9,0.00021917,2]
[323294624,1713879040493,-647.8094846,0.00021917,2]
[323294625,1713879040502,-584.07,0.00021917,2]
[323294626,1713879040511,-500.0,0.00021917,2]
[323294627,1713879040520,-500.0,0.00021917,2]
[323294628,1713879040529,-500.0,0.00021917,2]
[323294629,1713879040537,-500.0,0.00021917,2]
[323294631,1713879040547,-1135.73,0.00021917,2]
[323294632,1713879040559,-500.0,0.00021917,2]
[323294633,1713879040567,-500.0,0.00021917,2]
[323294634,1713879040576,-552.5,0.00021917,2]
[323294636,1713879040585,-151.0,0.00021917,2]
[323294638,1713879040593,-151.0,0.00021917,2]
[323294640,1713879040602,-151.0,0.00021917,2]
[323294642,1713879040611,-151.0,0.00021917,2]
[323294644,1713879040620,-275.872255,0.00021917,2]
[323294646,1713879040629,-500.0,0.00021917,2]
[323294648,1713879040638,-311.394215,0.00021917,2]
[323294650,1713879040647,-311.394215,0.00021917,2]
[323294652,1713879040656,-311.394215,0.00021917,2]
[323294654,1713879040665,-225.99638695,0.00021917,2]
[323294656,1713879040674,-500.0,0.00021917,2]
[323294658,1713879040684,-500.0,0.00021917,2]
[323294660,1713879040693,-311.394215,0.00021917,2]
[323294662,1713879040702,-311.394215,0.00021917,2]
[323294664,1713879040712,-311.394215,0.00021917,2]
[323294666,1713879040721,-500.0,0.00021917,2]
[323294667,1713879040730,-500.0,0.00021917,2]
[323294669,1713879040739,-644.66,0.00021917,2]
[323294671,1713879040748,-500.0,0.00021917,2]
[323294673,1713879040757,-500.0,0.00021917,2]
[323294675,1713879040766,-500.0,0.00021917,2]
[323294678,1713879040776,-500.0,0.00021917,2]
[323294679,1713879040785,-500.0,0.00021917,2]
[323294680,1713879040794,-500.0,0.00021917,2]
[323294681,1713879040806,-987.92,0.00021917,2]
[323294683,1713879040817,-500.0,0.00021917,2]
[323294685,1713879040826,-500.0,0.00021917,2]
[323294687,1713879040835,-500.0,0.00021917,2]
[323294689,1713879040844,-500.0,0.00021917,2]
[323294691,1713879040854,-500.0,0.00021917,2]
[323294693,1713879040863,-622.13,0.00021917,2]
[323294695,1713879040872,-500.0,0.00021917,2]
[323294697,1713879040881,-500.0,0.00021917,2]
[323294699,1713879040891,-662.02,0.00021917,2]
[323294701,1713879040899,-608.27,0.00021917,2]
[323294702,1713879040908,-500.0,0.00021917,2]
[323294705,1713879040918,-248.51,0.00021917,2]
[323294707,1713879040928,-504.79379723,0.00021917,2]
[323294708,1713879040937,-658.23,0.00021917,2]
[323294710,1713879040949,-508.67049919,0.00021917,2]
[323294711,1713879040959,-500.0,0.00021917,2]
[323294712,1713879040968,-935.633361,0.00021917,2]
[323294714,1713879040977,-935.633361,0.00021917,2]
[323294716,1713879040986,-935.633361,0.00021917,2]
[323294717,1713879040995,-500.0,0.00021917,2]
[323294718,1713879041004,-560.37,0.00021917,2]
[323294719,1713879041013,-935.633361,0.00021917,2]
[323294720,1713879041023,-935.633361,0.00021917,2]
[323294721,1713879041032,-935.633361,0.00021917,2]
[323294722,1713879041042,-741.1,0.00021917,2]
[323294723,1713879041051,-500.0,0.00021917,2]
[323294724,1713879041065,-6958.05,0.00021917,2]
[323294725,1713879041073,-1060.55,0.00021917,2]
[323294726,1713879041082,-1456.67,0.00021917,2]
[323294727,1713879041091,-1882.41,0.00021917,2]
[323294728,1713879041101,-500.0,0.00021917,2]
[323294729,1713879041110,-500.0,0.00021917,2]
[323294730,1713879041119,-683.97,0.00021917,2]
[323294731,1713879041128,-810.46,0.00021917,2]
[323294732,1713879041137,-500.0,0.00021917,2]
[323294733,1713879041146,-500.0,0.00021917,2]
[323294734,1713879041156,-585.91338873,0.00021917,2]
[323294735,1713879041165,-12691.48,0.00021917,2]
[323294736,1713879041174,-1380.34,0.00021917,2]
[323294737,1713879041186,-500.0,0.00021917,2]
[323294738,1713879041196,-623.64,0.00021917,2]
[323294739,1713879041204,-1384.5,0.00021917,2]
[323294741,1713879041214,-500.0,0.00021917,2]
[323294743,1713879041223,-590.11,0.00021917,2]
[323294745,1713879041232,-1061.7,0.00021917,2]
[323294747,1713879041241,-518.33017643,0.00021917,2]
[323294749,1713879041250,-500.17158671,0.00021917,2]
[323294751,1713879041259,-500.0,0.00021917,2]
[323294753,1713879041267,-259.637045,0.00021917,2]
[323294755,1713879041276,-500.0,0.00021917,2]
[323294757,1713879041285,-500.0,0.00021917,2]
[323294759,1713879041294,-7242.32535151,0.00021917,2]
[323295264,1713879046110,-235.89670241,0.00015,2]
[323295266,1713879046119,-513.3,0.0001999,3]
[323295268,1713879046128,-153.0,0.00020548,2]
[323295270,1713879046138,-153.0,0.00021392,2]
[323295272,1713879046147,-417.0,0.00021664,2]
[323295274,1713879046155,-637.9252794,0.0002169,2]
[323295276,1713879046164,-553.83136724,0.00021691,2]
[323295278,1713879046173,-1687.25386335,0.00021917,2]
[323297220,1713879578135,50000.0,0.00027,120]
[323297230,1713880046100,-308.49906714,0.00014055,2]
[323297231,1713880046121,-157.76351589,0.00014055,2]
[323297232,1713880046142,-157.76351589,0.00014056,2]
[323297233,1713880046164,-776.40480682,0.00014347,2]
[323297234,1713880046191,-311.66869065,0.00014449,2]
[323297235,1713880046211,-170.71278789,0.000146,2]
[323297236,1713880046235,-300.0,0.00014999,2]
[323297237,1713880046260,-300.0,0.00014999,2]
[323297238,1713880046426,-12812.02205124,0.00015,2]
[323297239,1713880046447,-883.78313678,0.00015517,2]
[323297240,1713880046468,-24900.0,0.00015518,2]
[323297241,1713880046490,-316.21933673,0.00015744,2]
[323297242,1713880046510,-1955.3744156,0.00015844,2]
[323297243,1713880046530,-420.0,0.00016416,2]
[323297244,1713880046550,-420.0,0.00016499,2]
[323297245,1713880046571,-272.57129579,0.000165,2]
[323297246,1713880046592,-587.0,0.00017966,2]
[323297247,1713880046613,-3384.66457059,0.00018,2]
[323297248,1713880046634,-587.0,0.00018149,2]
[323297249,1713880046656,-154.86062544,0.00018333,2]
[323297250,1713880046681,-1311.74164115,0.00018334,2]
[323297251,1713880046703,-189.19295912,0.0001897,2]
[323297252,1713880046725,-637.9252794,0.00019,2]
[323297253,1713880046747,-159.647137,0.00019178,2]
[323297254,1713880046767,-823.0,0.00019663,2]
[323297255,1713880046789,-2000.0,0.000199,2]
[323297256,1713880046810,-823.0,0.00019964,2]
[323297257,1713880046831,-319.72058798,0.0002,2]
[323297258,1713880046852,-154.82968734,0.0002,2]
[323297259,1713880046872,-681.0118189,0.0002,2]
[323297260,1713880046892,-3322.88897122,0.0002,2]
[323297261,1713880046912,-154.82968734,0.0002,2]
[323297262,1713880046936,-678.04287141,0.0002,2]
[323297263,1713880046956,-238.88786072,0.0002,2]
[323297264,1713880046975,-241.51912105,0.0002,2]
[323297265,1713880046995,-400.0,0.0002,2]
[323297266,1713880047017,-154.82968734,0.0002,2]
[323297267,1713880047039,-5459.67159958,0.0002,2]
[323297268,1713880047059,-277.98874346,0.0002,2]
[323297269,1713880047080,-80000.0,0.0002,2]
[323297270,1713880047101,-2000.0,0.0002,2]
[323297271,1713880047121,-2000.0,0.0002,2]
[323297272,1713880047141,-2000.0,0.0002,2]
[323297273,1713880047161,-200.0,0.0002,2]
[323297274,1713880047183,-316.21933671,0.00020152,2]
[323297275,1713880047207,-2000.0,0.000208,2]
[323297276,1713880047227,-153.0,0.00020844,2]
[323297277,1713880047247,-7925.57647667,0.00021,2]
[323297278,1713880047271,-944.1237298,0.00021,2]
[323297279,1713880047291,-203.50832674,0.00021291,4]
[323297280,1713880047314,-5000.0,0.000213,2]
[323297281,1713880047335,-153.0,0.00021452,2]
[323297282,1713880047356,-153.0,0.00021506,2]
[323297283,1713880047375,-153.0,0.00021506,2]
[323297284,1713880047396,-153.0,0.00021506,2]
[323297285,1713880047418,-153.0,0.00021506,2]
[323297286,1713880047440,-153.0,0.00021506,2]
[323297287,1713880047460,-411.3285172,0.00021506,2]
[323297288,1713880047481,-1152.0,0.0002152,2]
[323297289,1713880047501,-417.0,0.00021636,2]
[323297290,1713880047522,-153.0,0.00021667,2]
[323297291,1713880047542,-153.0,0.00021667,2]
[323297292,1713880047563,-306.0,0.00021667,2]
[323297293,1713880047584,-153.0,0.00021678,2]
[323297294,1713880047604,-157.15569525,0.00021697,2]
[323297295,1713880047624,-628.221272,0.00021793,2]
[323297296,1713880047644,-2000.0,0.000218,2]
[323297297,1713880047664,-289.74342541,0.00021814,2]
[323297298,1713880047687,-197.96771572,0.00021814,2]
[323297299,1713880047708,-237.35630025,0.00021814,2]
[323297300,1713880047727,-155.02148443,0.00021815,2]
[323297301,1713880047748,-200.0,0.00021815,2]
[323297302,1713880047768,-199.80945329,0.00021815,2]
[323297303,1713880047789,-156.3171088,0.00021815,2]
[323297304,1713880047810,-2099.47208497,0.00021815,2]
[323297305,1713880047829,-158.98533641,0.00021815,2]
[323297306,1713880047853,-172.3190033,0.00021815,2]
[323297307,1713880047875,-1675.82446385,0.00021815,2]
[323297308,1713880047899,-459.70738052,0.00021815,2]
[323297309,1713880047922,-52782.40619781,0.00021815,2]
[323297310,1713880050336,-20647.10572,0.00021815,2]
[323297324,1713880232302,-316.23475701,0.00019997,2]
[323297325,1713880232343,-0.080376,0.00019997,2]
[323297414,1713880238326,-272.57129579,0.00019996,2]
[323297416,1713880238336,-3068.34943758,0.00019997,2]
[323297418,1713880238345,-189.19295912,0.00019998,2]
[323297420,1713880238354,-637.9252794,0.00019998,2]
[323297422,1713880238363,-300.0,0.00019999,2]
[323297424,1713880238373,-300.0,0.00019999,2]
[323297426,1713880238382,-319.72058798,0.0002,2]
[323297428,1713880238392,-1444.73301721,0.0002,2]
[323297626,1713880240354,-1324.34112547,0.0002,2]
[323297628,1713880240364,-241.51912105,0.0002,2]
[323297630,1713880240373,-400.0,0.0002,2]
[323297632,1713880240384,-154.82968734,0.0002,2]
[323297634,1713880240393,-154.82968734,0.0002,2]
[323297636,1713880240402,-277.98874346,0.0002,2]
[323297638,1713880240412,-5459.67159958,0.0002,2]
[323297640,1713880240422,-354.80715765,0.00020723,2]
[323297642,1713880240431,-678.04287141,0.00020723,2]
[323297644,1713880240440,-154.82968734,0.00020724,2]
[323297646,1713880240449,-7925.57647667,0.00021,2]
[323297648,1713880240458,-5000.0,0.000213,2]
[323297650,1713880240467,-237.16450255,0.00021494,2]
[323297652,1713880240477,-80000.0,0.0002159,2]
[323297654,1713880240486,-14886.31228014,0.00021593,2]
[323297656,1713880240498,-664.59354,0.00021593,2]
[323297659,1713880240510,-41107.71933448,0.00021593,2]
[323297661,1713880240519,-9799.83240163,0.00021597,2]
[323297663,1713880240528,-150.0,0.00021636,2]
[323297665,1713880240537,-157.15569525,0.00021697,2]
[323297667,1713880240547,-2000.0,0.00021715,2]
[323297669,1713880240555,-264.0,0.00021777,2]
[323297671,1713880240569,-410.76210048,0.00021791,2]
[323297673,1713880240579,-574.66888031,0.00021813,2]
[323297674,1713880240589,-1202.20163216,0.00021813,2]
[323297675,1713880240598,-212.06825711,0.00021813,2]
[323297676,1713880240607,-521.52942585,0.00021813,2]
[323297677,1713880240617,-5854.88275881,0.00021813,2]
[323297678,1713880240626,-1678.29832492,0.00021813,2]
[323297679,1713880240635,-235.59138741,0.00021813,2]
[323297680,1713880240644,-156.83832376,0.00021813,2]
[323297681,1713880240654,-1490.32391025,0.00021813,2]
[323297682,1713880240665,-18521.54336291,0.00021815,2]
[323297989,1713880243678,-3055.68980698,0.00019715,2]
[323297992,1713880243687,-238.88786072,0.00020722,2]
[323297995,1713880243696,-5966.69667924,0.00021815,2]
[323297999,1713880243706,-157.03688122,0.00021815,2]
[323298003,1713880243715,-305.02639978,0.00021815,2]
[323298007,1713880243725,-155.35152652,0.00021815,2]
[323298011,1713880243734,-206.06744026,0.00021815,2]
[323298013,1713880243744,-154.86062544,0.00021815,2]
[323298017,1713880243755,-526.34381075,0.00021815,2]
[323298021,1713880243764,-157.7311165,0.00021815,2]
[323298025,1713880243775,-308.43832005,0.00021815,2]
[323298027,1713880243784,-156.66934156,0.00021815,2]
[323298030,1713880243794,-10117.08160631,0.00021815,2]
[323298033,1713880243803,-154.82968734,0.00021815,2]
[323298036,1713880243813,-3600.0,0.00021815,2]
[323298039,1713880243822,-154.97132809,0.00021815,2]
[323298041,1713880243833,-692.47153713,0.00021815,2]
[323298043,1713880243843,-385.87436612,0.00021815,2]
[323298045,1713880243854,-16090.47686539,0.00021815,2]
[323298047,1713880243864,-180.31386745,0.00021815,2]
[323298049,1713880243874,-221.86358459,0.00021815,2]
[323298051,1713880243884,-154.82968734,0.00021815,2]
[323298053,1713880243894,-304.17910524,0.00021816,2]
[323298055,1713880243904,-28124.86319081,0.00021817,3]
[323298257,1713880246577,-24900.0,0.00020837,2]
[323298258,1713880246587,-16319.13680919,0.00021817,3]
[323298259,1713880246597,-184.02056108,0.000219,2]
[323298260,1713880246607,-184.02056,0.000219,2]